[Event "Titled Tuesday Blitz January 03 Late 2023"]
[White "Doluhanova, Evgeniya"]
[Black "Kim, Yoon-Young"]
[WhiteFideId "14112035"]
[BlackFideId "30908779"]
[WhiteElo "2275"]
[BlackElo "2304"]
[Result "0-1"]
[Round "01"]
[TimeControl "180+2"]
[Date "2023.01.03"]
[WhiteClock "0:00:07"]
[BlackClock "0:00:10"]

1. e4 {[%clk 0:03:00]}  e5 {[%clk 0:02:57]} 2. Nf3 {[%clk 0:03:00]}  Nc6 {[%clk 0:02:56]} 3. Nc3 {[%clk 0:03:00]}  Nf6 {[%clk 0:02:56]} 4. d4 {[%clk 0:03:00]}  exd4 {[%clk 0:02:57]} 5. Nxd4 {[%clk 0:03:00]}  Bc5 {[%clk 0:02:55]} 6. Be3 {[%clk 0:02:59]}  Bb4 {[%clk 0:02:47]} 7. Bd3 {[%clk 0:02:52]}  d6 {[%clk 0:02:34]} 8. O-O {[%clk 0:02:47]}  Ng4 {[%clk 0:02:29]} 9. Nd5 {[%clk 0:02:41]}  Bc5 {[%clk 0:01:36]} 10. Nxc6 {[%clk 0:02:31]}  bxc6 {[%clk 0:01:37]} 11. Bxc5 {[%clk 0:02:30]}  cxd5 {[%clk 0:01:27]} 12. Bb5+ {[%clk 0:02:30]}  Kf8 {[%clk 0:01:25]} 13. Qxd5 {[%clk 0:02:26]}  Be6 {[%clk 0:01:15]} 14. Qc6 {[%clk 0:02:12]}  dxc5 {[%clk 0:01:04]} 15. Rad1 {[%clk 0:02:10]}  Qb8 {[%clk 0:00:56]} 16. Qxc5+ {[%clk 0:02:09]}  Kg8 {[%clk 0:00:54]} 17. Bc6 {[%clk 0:01:58]}  h5 {[%clk 0:00:47]} 18. h3 {[%clk 0:01:50]}  Nf6 {[%clk 0:00:46]} 19. e5 {[%clk 0:01:48]}  Ne8 {[%clk 0:00:20]} 20. Rd4 {[%clk 0:01:45]}  Qc8 {[%clk 0:00:16]} 21. Bxa8 {[%clk 0:01:41]}  Qxa8 {[%clk 0:00:17]} 22. Rfd1 {[%clk 0:01:40]}  Kh7 {[%clk 0:00:14]} 23. Qc3 {[%clk 0:01:22]}  Qb7 {[%clk 0:00:12]} 24. Rd8 {[%clk 0:01:14]}  g6 {[%clk 0:00:11]} 25. b3 {[%clk 0:01:10]}  Ng7 {[%clk 0:00:08]} 26. Rxh8+ {[%clk 0:01:07]}  Kxh8 {[%clk 0:00:09]} 27. Rd8+ {[%clk 0:00:57]}  Kh7 {[%clk 0:00:10]} 28. Qc5 {[%clk 0:00:52]}  Qe4 {[%clk 0:00:10]} 29. Qf8 {[%clk 0:00:29]}  Qe1+ {[%clk 0:00:09]} 30. Kh2 {[%clk 0:00:29]}  Qxe5+ {[%clk 0:00:10]} 31. g3 {[%clk 0:00:30]}  g5 {[%clk 0:00:10]} 32. Qg8+ {[%clk 0:00:19]}  Kg6 {[%clk 0:00:11]} 33. Rd3 {[%clk 0:00:17]}  Qf5 {[%clk 0:00:10]} 34. Kg2 {[%clk 0:00:15]}  Qxh3+ {[%clk 0:00:10]} 35. Kf3 {[%clk 0:00:15]}  Qf5+ {[%clk 0:00:07]} 36. Kg2 {[%clk 0:00:15]}  Qe4+ {[%clk 0:00:07]} 37. Kg1 {[%clk 0:00:11]}  Qe1+ {[%clk 0:00:06]} 38. Kg2 {[%clk 0:00:11]}  Qe4+ {[%clk 0:00:07]} 39. Kg1 {[%clk 0:00:11]}  Bd5 {[%clk 0:00:07]} 40. f3 {[%clk 0:00:11]}  Qe1+ {[%clk 0:00:07]} 41. Kg2 {[%clk 0:00:11]}  Qe5 {[%clk 0:00:07]} 42. Kf2 {[%clk 0:00:11]}  Be6 {[%clk 0:00:07]} 43. c4 {[%clk 0:00:11]}  g4 {[%clk 0:00:07]} 44. Re3 {[%clk 0:00:11]}  Qf5 {[%clk 0:00:07]} 45. f4 {[%clk 0:00:10]}  Qc2+ {[%clk 0:00:08]} 46. Re2 {[%clk 0:00:10]}  Qd3 {[%clk 0:00:07]} 47. Re3 {[%clk 0:00:10]}  Qd2+ {[%clk 0:00:07]} 48. Re2 {[%clk 0:00:11]}  Qd4+ {[%clk 0:00:08]} 49. Re3 {[%clk 0:00:11]}  Qd1 {[%clk 0:00:08]} 50. Re2 {[%clk 0:00:11]}  Qh1 {[%clk 0:00:08]} 51. Ke3 {[%clk 0:00:11]}  Qf3+ {[%clk 0:00:08]} 52. Kd2 {[%clk 0:00:11]}  Qxg3 {[%clk 0:00:09]} 53. Qf8 {[%clk 0:00:10]}  Qxf4+ {[%clk 0:00:09]} 54. Kc3 {[%clk 0:00:09]}  Qf3+ {[%clk 0:00:09]} 55. Kd2 {[%clk 0:00:10]}  g3 {[%clk 0:00:09]} 56. Qc5 {[%clk 0:00:08]}  Qf4+ {[%clk 0:00:09]} 57. Kc3 {[%clk 0:00:07]}  Nf5 {[%clk 0:00:10]} 58. Kb2 {[%clk 0:00:06]}  Qf3 {[%clk 0:00:10]} 59. Rxe6+ {[%clk 0:00:06]}  fxe6 {[%clk 0:00:10]} 60. Qe5 {[%clk 0:00:07]}  Qe3 {[%clk 0:00:10]} 0-1


[Site "https://www.chess.com"]

[Event "Titled Tuesday Blitz January 03 Late 2023"]
[White "Shuvalova, Polina"]
[Black "Rian, Kapriaga"]
[WhiteFideId "24171760"]
[BlackFideId "7103263"]
[WhiteElo "2484"]
[BlackElo "2089"]
[Result "1-0"]
[Round "01"]
[TimeControl "180+2"]
[Date "2023.01.03"]
[WhiteClock "0:01:01"]
[BlackClock "0:00:10"]

1. d4 {[%clk 0:03:00]}  Nf6 {[%clk 0:02:58]} 2. Nf3 {[%clk 0:02:58]}  d5 {[%clk 0:02:57]} 3. Bf4 {[%clk 0:02:58]}  e6 {[%clk 0:02:57]} 4. e3 {[%clk 0:02:58]}  Bd6 {[%clk 0:02:57]} 5. Bxd6 {[%clk 0:02:58]}  cxd6 {[%clk 0:02:56]} 6. c4 {[%clk 0:02:59]}  O-O {[%clk 0:02:54]} 7. Nc3 {[%clk 0:02:59]}  dxc4 {[%clk 0:02:53]} 8. Bxc4 {[%clk 0:03:00]}  a6 {[%clk 0:02:53]} 9. a4 {[%clk 0:02:58]}  Nbd7 {[%clk 0:02:52]} 10. O-O {[%clk 0:02:58]}  Nb6 {[%clk 0:02:52]} 11. Bd3 {[%clk 0:02:58]}  Bd7 {[%clk 0:02:52]} 12. a5 {[%clk 0:02:57]}  Nbd5 {[%clk 0:02:50]} 13. Qd2 {[%clk 0:02:55]}  Rc8 {[%clk 0:02:44]} 14. Ne2 {[%clk 0:02:54]}  Ne7 {[%clk 0:02:30]} 15. Rfc1 {[%clk 0:02:51]}  Rxc1+ {[%clk 0:02:27]} 16. Rxc1 {[%clk 0:02:49]}  Qb8 {[%clk 0:02:27]} 17. b4 {[%clk 0:02:45]}  Rc8 {[%clk 0:02:26]} 18. h3 {[%clk 0:02:45]}  Rxc1+ {[%clk 0:02:25]} 19. Nxc1 {[%clk 0:02:44]}  h6 {[%clk 0:02:20]} 20. Qb2 {[%clk 0:02:29]}  Qe8 {[%clk 0:02:17]} 21. Nd2 {[%clk 0:02:18]}  Bb5 {[%clk 0:02:16]} 22. e4 {[%clk 0:02:10]}  Qc8 {[%clk 0:02:13]} 23. Bxb5 {[%clk 0:02:08]}  axb5 {[%clk 0:02:13]} 24. Nd3 {[%clk 0:02:09]}  Qc6 {[%clk 0:02:04]} 25. f3 {[%clk 0:02:08]}  Kf8 {[%clk 0:01:57]} 26. Kf2 {[%clk 0:02:03]}  h5 {[%clk 0:01:50]} 27. h4 {[%clk 0:02:01]}  Ke8 {[%clk 0:01:47]} 28. Nb1 {[%clk 0:01:54]}  Qc4 {[%clk 0:01:44]} 29. Ke3 {[%clk 0:01:49]}  Qc6 {[%clk 0:01:14]} 30. Kd2 {[%clk 0:01:43]}  Qc4 {[%clk 0:01:09]} 31. Na3 {[%clk 0:01:39]}  Qc6 {[%clk 0:01:09]} 32. Qc3 {[%clk 0:01:39]}  Kd8 {[%clk 0:01:00]} 33. Qxc6 {[%clk 0:01:37]}  bxc6 {[%clk 0:01:00]} 34. Nc2 {[%clk 0:01:35]}  Kc7 {[%clk 0:00:59]} 35. Ne3 {[%clk 0:01:35]}  g6 {[%clk 0:00:57]} 36. g4 {[%clk 0:01:35]}  hxg4 {[%clk 0:00:54]} 37. Nxg4 {[%clk 0:01:35]}  Nh5 {[%clk 0:00:53]} 38. Ke3 {[%clk 0:01:32]}  Kb7 {[%clk 0:00:42]} 39. Nh6 {[%clk 0:01:31]}  f5 {[%clk 0:00:38]} 40. Nf7 {[%clk 0:01:30]}  Kc7 {[%clk 0:00:38]} 41. Ng5 {[%clk 0:01:21]}  Ng7 {[%clk 0:00:31]} 42. Nf4 {[%clk 0:01:21]}  e5 {[%clk 0:00:26]} 43. dxe5 {[%clk 0:01:17]}  dxe5 {[%clk 0:00:25]} 44. Nfe6+ {[%clk 0:01:17]}  Nxe6 {[%clk 0:00:25]} 45. Nxe6+ {[%clk 0:01:18]}  Kb7 {[%clk 0:00:24]} 46. Nc5+ {[%clk 0:01:13]}  Kc7 {[%clk 0:00:23]} 47. Nd3 {[%clk 0:01:13]}  Kd6 {[%clk 0:00:20]} 48. a6 {[%clk 0:01:10]}  f4+ {[%clk 0:00:19]} 49. Kf2 {[%clk 0:01:02]}  Nc8 {[%clk 0:00:19]} 50. Kg2 {[%clk 0:01:02]}  Na7 {[%clk 0:00:17]} 51. Kh3 {[%clk 0:01:03]}  Nc8 {[%clk 0:00:17]} 52. Kg4 {[%clk 0:01:03]}  Kc7 {[%clk 0:00:16]} 53. Nxe5 {[%clk 0:01:02]}  Kb6 {[%clk 0:00:16]} 54. Nxg6 {[%clk 0:01:01]}  c5 {[%clk 0:00:15]} 55. bxc5+ {[%clk 0:01:01]}  Kxc5 {[%clk 0:00:15]} 56. Nxf4 {[%clk 0:01:02]}  Kd4 {[%clk 0:00:14]} 57. h5 {[%clk 0:00:59]}  b4 {[%clk 0:00:14]} 58. h6 {[%clk 0:01:00]}  b3 {[%clk 0:00:11]} 59. h7 {[%clk 0:01:00]}  Kc3 {[%clk 0:00:10]} 60. h8=Q+ {[%clk 0:01:01]}  Kc2 {[%clk 0:00:10]} 61. Qxc8+ {[%clk 0:01:01]} 1-0


[Site "https://www.chess.com"]

[Event "Titled Tuesday Blitz January 03 Late 2023"]
[White "Atanasov, Anthony"]
[Black "Fernandez, Maria Florencia"]
[WhiteFideId "2623897"]
[BlackFideId "116459"]
[WhiteElo "2368"]
[BlackElo "2129"]
[Result "1-0"]
[Round "01"]
[TimeControl "180+2"]
[Date "2023.01.03"]
[WhiteClock "0:00:12"]
[BlackClock "0:00:05"]

1. d4 {[%clk 0:02:58]}  Nf6 {[%clk 0:02:53]} 2. Nf3 {[%clk 0:02:58]}  g6 {[%clk 0:02:53]} 3. c4 {[%clk 0:02:58]}  Bg7 {[%clk 0:02:53]} 4. Nc3 {[%clk 0:02:58]}  O-O {[%clk 0:02:34]} 5. e4 {[%clk 0:02:57]}  d6 {[%clk 0:02:34]} 6. Be2 {[%clk 0:02:56]}  e5 {[%clk 0:02:33]} 7. dxe5 {[%clk 0:02:57]}  dxe5 {[%clk 0:02:33]} 8. Bg5 {[%clk 0:02:58]}  c6 {[%clk 0:02:30]} 9. Nxe5 {[%clk 0:02:39]}  Qa5 {[%clk 0:02:14]} 10. Bxf6 {[%clk 0:01:50]}  Bxf6 {[%clk 0:02:12]} 11. f4 {[%clk 0:01:50]}  Bxe5 {[%clk 0:02:10]} 12. fxe5 {[%clk 0:01:51]}  Qxe5 {[%clk 0:02:10]} 13. O-O {[%clk 0:01:51]}  Be6 {[%clk 0:02:04]} 14. Qd2 {[%clk 0:01:42]}  Bxc4 {[%clk 0:01:45]} 15. Bxc4 {[%clk 0:01:33]}  Qc5+ {[%clk 0:01:45]} 16. Kh1 {[%clk 0:01:29]}  Qxc4 {[%clk 0:01:44]} 17. e5 {[%clk 0:01:07]}  Na6 {[%clk 0:01:31]} 18. Qh6 {[%clk 0:01:05]}  Qd4 {[%clk 0:00:42]} 19. Rae1 {[%clk 0:01:04]}  f5 {[%clk 0:00:20]} 20. Rf4 {[%clk 0:00:52]}  Qd7 {[%clk 0:00:18]} 21. e6 {[%clk 0:00:31]}  Qg7 {[%clk 0:00:18]} 22. Qh3 {[%clk 0:00:17]}  Rae8 {[%clk 0:00:19]} 23. Qd3 {[%clk 0:00:12]}  Nc5 {[%clk 0:00:17]} 24. Qc4 {[%clk 0:00:10]}  Qe7 {[%clk 0:00:17]} 25. Rf2 {[%clk 0:00:07]}  Nxe6 {[%clk 0:00:16]} 26. Rfe2 {[%clk 0:00:08]}  Rf6 {[%clk 0:00:16]} 27. g4 {[%clk 0:00:04]}  fxg4 {[%clk 0:00:14]} 28. Ne4 {[%clk 0:00:05]}  Rf4 {[%clk 0:00:11]} 29. Qb3 {[%clk 0:00:04]}  Kg7 {[%clk 0:00:10]} 30. Ng3 {[%clk 0:00:02]}  Qf6 {[%clk 0:00:08]} 31. Rxe6 {[%clk 0:00:02]}  Rxe6 {[%clk 0:00:08]} 32. Qxe6 {[%clk 0:00:01]}  Qxe6 {[%clk 0:00:07]} 33. Rxe6 {[%clk 0:00:02]}  Rb4 {[%clk 0:00:07]} 34. Re7+ {[%clk 0:00:02]}  Kh6 {[%clk 0:00:06]} 35. Re2 {[%clk 0:00:03]}  Kg5 {[%clk 0:00:05]} 36. Kg2 {[%clk 0:00:03]}  h5 {[%clk 0:00:05]} 37. b3 {[%clk 0:00:02]}  Kf4 {[%clk 0:00:05]} 38. Rf2+ {[%clk 0:00:02]}  Kg5 {[%clk 0:00:05]} 39. Re2 {[%clk 0:00:02]}  h4 {[%clk 0:00:05]} 40. Ne4+ {[%clk 0:00:03]}  Kf4 {[%clk 0:00:06]} 41. Nd6 {[%clk 0:00:03]}  h3+ {[%clk 0:00:06]} 42. Kf2 {[%clk 0:00:03]}  Rd4 {[%clk 0:00:06]} 43. Nxb7 {[%clk 0:00:03]}  Rd1 {[%clk 0:00:05]} 44. Nc5 {[%clk 0:00:03]}  Rh1 {[%clk 0:00:06]} 45. Nd3+ {[%clk 0:00:02]}  Kf5 {[%clk 0:00:06]} 46. Kg3 {[%clk 0:00:02]}  Rg1+ {[%clk 0:00:06]} 47. Kh4 {[%clk 0:00:02]}  g5+ {[%clk 0:00:06]} 48. Kh5 {[%clk 0:00:03]}  Rg2 {[%clk 0:00:06]} 49. Re5+ {[%clk 0:00:03]}  Kf6 {[%clk 0:00:06]} 50. Rxg5 {[%clk 0:00:03]}  g3 {[%clk 0:00:04]} 51. Rg6+ {[%clk 0:00:02]}  Kf5 {[%clk 0:00:04]} 52. Rxg3 {[%clk 0:00:02]}  Rxg3 {[%clk 0:00:04]} 53. hxg3 {[%clk 0:00:02]}  h2 {[%clk 0:00:05]} 54. Nf2 {[%clk 0:00:03]}  c5 {[%clk 0:00:03]} 55. Kh4 {[%clk 0:00:03]}  a5 {[%clk 0:00:02]} 56. Kh3 {[%clk 0:00:03]}  Ke5 {[%clk 0:00:02]} 57. Kxh2 {[%clk 0:00:04]}  Kd4 {[%clk 0:00:02]} 58. g4 {[%clk 0:00:05]}  Kc3 {[%clk 0:00:03]} 59. g5 {[%clk 0:00:05]}  Kb2 {[%clk 0:00:03]} 60. g6 {[%clk 0:00:06]}  Kxa2 {[%clk 0:00:04]} 61. g7 {[%clk 0:00:07]}  Kxb3 {[%clk 0:00:05]} 62. g8=Q+ {[%clk 0:00:08]}  c4 {[%clk 0:00:06]} 63. Ne4 {[%clk 0:00:08]}  a4 {[%clk 0:00:07]} 64. Qb8+ {[%clk 0:00:08]}  Kc2 {[%clk 0:00:05]} 65. Qb4 {[%clk 0:00:09]}  a3 {[%clk 0:00:05]} 66. Qc3+ {[%clk 0:00:09]}  Kb1 {[%clk 0:00:05]} 67. Nd2+ {[%clk 0:00:10]}  Ka2 {[%clk 0:00:05]} 68. Qc2+ {[%clk 0:00:11]}  Ka1 {[%clk 0:00:05]} 69. Qb1# {[%clk 0:00:12]} 1-0


[Site "https://www.chess.com"]

[Event "Titled Tuesday Blitz January 03 Late 2023"]
[White "Vifleemskaia, Svetlana"]
[Black "Di Berardino, Diego Rafael"]
[WhiteFideId "4129490"]
[BlackFideId "2105446"]
[WhiteElo "1971"]
[BlackElo "2479"]
[Result "0-1"]
[Round "01"]
[TimeControl "180+2"]
[Date "2023.01.03"]
[WhiteClock "0:00:11"]
[BlackClock "0:00:05"]

1. d4 {[%clk 0:02:57]}  d5 {[%clk 0:02:58]} 2. c4 {[%clk 0:02:57]}  e6 {[%clk 0:02:57]} 3. Nc3 {[%clk 0:02:57]}  Be7 {[%clk 0:02:54]} 4. cxd5 {[%clk 0:02:57]}  exd5 {[%clk 0:02:54]} 5. Bf4 {[%clk 0:02:57]}  Nf6 {[%clk 0:02:54]} 6. Nf3 {[%clk 0:02:56]}  O-O {[%clk 0:02:53]} 7. e3 {[%clk 0:02:57]}  c5 {[%clk 0:02:51]} 8. h3 {[%clk 0:02:56]}  Nc6 {[%clk 0:02:50]} 9. Bd3 {[%clk 0:02:53]}  c4 {[%clk 0:02:48]} 10. Bc2 {[%clk 0:02:49]}  a6 {[%clk 0:02:44]} 11. a4 {[%clk 0:02:48]}  Nb4 {[%clk 0:02:38]} 12. Bb1 {[%clk 0:02:47]}  Be6 {[%clk 0:02:21]} 13. O-O {[%clk 0:02:46]}  Bd6 {[%clk 0:02:14]} 14. Bxd6 {[%clk 0:02:39]}  Qxd6 {[%clk 0:02:15]} 15. Ne5 {[%clk 0:02:38]}  Rab8 {[%clk 0:02:11]} 16. a5 {[%clk 0:02:29]}  b5 {[%clk 0:01:51]} 17. axb6 {[%clk 0:02:29]}  Rxb6 {[%clk 0:01:50]} 18. Na4 {[%clk 0:02:29]}  Rbb8 {[%clk 0:01:47]} 19. Nc5 {[%clk 0:02:28]}  Nd7 {[%clk 0:01:31]} 20. Nexd7 {[%clk 0:02:19]}  Bxd7 {[%clk 0:01:32]} 21. e4 {[%clk 0:02:09]}  dxe4 {[%clk 0:01:26]} 22. Bxe4 {[%clk 0:02:07]}  Bc6 {[%clk 0:01:22]} 23. Bxc6 {[%clk 0:01:58]}  Qxc6 {[%clk 0:01:20]} 24. Qe2 {[%clk 0:01:52]}  Qd5 {[%clk 0:01:09]} 25. Rac1 {[%clk 0:01:31]}  Nc6 {[%clk 0:00:46]} 26. Qxc4 {[%clk 0:01:22]}  Qxd4 {[%clk 0:00:38]} 27. Nxa6 {[%clk 0:01:18]}  Rb6 {[%clk 0:00:30]} 28. Nc5 {[%clk 0:01:06]}  Rxb2 {[%clk 0:00:27]} 29. Nd3 {[%clk 0:00:53]}  Rd2 {[%clk 0:00:22]} 30. Qxc6 {[%clk 0:00:45]}  Rxd3 {[%clk 0:00:22]} 31. Qc4 {[%clk 0:00:42]}  g6 {[%clk 0:00:18]} 32. Qxd4 {[%clk 0:00:42]}  Rxd4 {[%clk 0:00:19]} 33. Rc7 {[%clk 0:00:41]}  h5 {[%clk 0:00:19]} 34. g3 {[%clk 0:00:35]}  h4 {[%clk 0:00:19]} 35. g4 {[%clk 0:00:32]}  Re8 {[%clk 0:00:17]} 36. Kg2 {[%clk 0:00:27]}  Re2 {[%clk 0:00:16]} 37. Rc6 {[%clk 0:00:17]}  Kg7 {[%clk 0:00:16]} 38. Rc7 {[%clk 0:00:17]}  Ra2 {[%clk 0:00:15]} 39. Rc6 {[%clk 0:00:16]}  Rd3 {[%clk 0:00:14]} 40. Rc4 {[%clk 0:00:14]}  Raa3 {[%clk 0:00:10]} 41. Rh1 {[%clk 0:00:14]}  Ra2 {[%clk 0:00:09]} 42. Rf1 {[%clk 0:00:13]}  g5 {[%clk 0:00:08]} 43. Rc5 {[%clk 0:00:13]}  Kg6 {[%clk 0:00:08]} 44. Rf5 {[%clk 0:00:13]}  f6 {[%clk 0:00:08]} 45. Rd1 {[%clk 0:00:11]}  Rxd1 {[%clk 0:00:05]} 0-1


[Site "https://www.chess.com"]

[Event "Titled Tuesday Blitz January 03 Late 2023"]
[White "AidenRchess"]
[Black "Khripachenko, Alexander"]
[BlackFideId "54184975"]
[WhiteElo "2398"]
[BlackElo "2110"]
[Result "1/2-1/2"]
[Round "01"]
[TimeControl "180+2"]
[Date "2023.01.03"]
[WhiteClock "0:00:56"]
[BlackClock "0:01:53"]

1. e4 {[%clk 0:02:50]}  e5 {[%clk 0:02:57]} 2. Nf3 {[%clk 0:02:49]}  Nf6 {[%clk 0:02:58]} 3. Nxe5 {[%clk 0:02:48]}  d6 {[%clk 0:02:59]} 4. Nf3 {[%clk 0:02:48]}  Nxe4 {[%clk 0:02:58]} 5. Nc3 {[%clk 0:02:47]}  Nf6 {[%clk 0:02:58]} 6. d4 {[%clk 0:02:47]}  g6 {[%clk 0:02:58]} 7. Bd3 {[%clk 0:02:40]}  Bg7 {[%clk 0:02:58]} 8. Bg5 {[%clk 0:02:39]}  O-O {[%clk 0:02:58]} 9. Qd2 {[%clk 0:02:39]}  Re8+ {[%clk 0:02:57]} 10. Ne2 {[%clk 0:02:36]}  Bg4 {[%clk 0:02:58]} 11. O-O-O {[%clk 0:02:31]}  Nc6 {[%clk 0:02:57]} 12. Bh6 {[%clk 0:02:23]}  Qd7 {[%clk 0:02:57]} 13. Bxg7 {[%clk 0:02:13]}  Kxg7 {[%clk 0:02:57]} 14. Qf4 {[%clk 0:01:43]}  Nd5 {[%clk 0:02:53]} 15. Qg3 {[%clk 0:01:35]}  Ndb4 {[%clk 0:02:51]} 16. Rhe1 {[%clk 0:01:30]}  Nxd3+ {[%clk 0:02:51]} 17. Rxd3 {[%clk 0:01:30]}  Nb4 {[%clk 0:02:51]} 18. Rb3 {[%clk 0:01:22]}  a5 {[%clk 0:02:41]} 19. h3 {[%clk 0:01:21]}  Be6 {[%clk 0:02:40]} 20. Re3 {[%clk 0:01:17]}  Nxa2+ {[%clk 0:02:39]} 21. Kb1 {[%clk 0:01:17]}  Nb4 {[%clk 0:02:39]} 22. Nc3 {[%clk 0:01:16]}  Bc4 {[%clk 0:02:38]} 23. h4 {[%clk 0:01:13]}  Rxe3 {[%clk 0:02:38]} 24. Rxe3 {[%clk 0:01:13]}  Re8 {[%clk 0:02:39]} 25. Ne4 {[%clk 0:01:09]}  Ba2+ {[%clk 0:02:38]} 26. Kc1 {[%clk 0:01:08]}  Bd5 {[%clk 0:02:39]} 27. Nfg5 {[%clk 0:01:06]}  Bxe4 {[%clk 0:02:39]} 28. Nxe4 {[%clk 0:01:05]}  Qc6 {[%clk 0:02:34]} 29. Nc3 {[%clk 0:01:02]}  Rxe3 {[%clk 0:02:34]} 30. fxe3 {[%clk 0:01:02]}  Qc4 {[%clk 0:02:34]} 31. Qf3 {[%clk 0:01:01]}  c6 {[%clk 0:02:32]} 32. h5 {[%clk 0:01:01]}  a4 {[%clk 0:02:30]} 33. Qf4 {[%clk 0:01:01]}  Qe6 {[%clk 0:02:25]} 34. h6+ {[%clk 0:01:01]}  Kg8 {[%clk 0:02:21]} 35. Ne4 {[%clk 0:01:01]}  f5 {[%clk 0:01:57]} 36. Nxd6 {[%clk 0:00:57]}  Nd5 {[%clk 0:01:55]} 37. Qe5 {[%clk 0:00:55]}  Qxe5 {[%clk 0:01:55]} 38. dxe5 {[%clk 0:00:56]}  b6 {[%clk 0:01:56]} 39. Kd2 {[%clk 0:00:55]}  Kf8 {[%clk 0:01:56]} 40. c4 {[%clk 0:00:54]}  Nb4 {[%clk 0:01:53]} 41. Nc8 {[%clk 0:00:53]}  b5 {[%clk 0:01:53]} 42. cxb5 {[%clk 0:00:54]}  cxb5 {[%clk 0:01:54]} 43. Nd6 {[%clk 0:00:55]}  Ke7 {[%clk 0:01:53]} 44. Nxb5 {[%clk 0:00:55]}  Ke6 {[%clk 0:01:53]} 45. Nc3 {[%clk 0:00:55]}  Kxe5 {[%clk 0:01:53]} 46. Nxa4 {[%clk 0:00:56]} 1/2-1/2


[Site "https://www.chess.com"]

[Event "Titled Tuesday Blitz January 03 Late 2023"]
[White "Sebag, Marie"]
[Black "Mayaud, Raphael"]
[WhiteFideId "617822"]
[BlackFideId "627151"]
[WhiteElo "2430"]
[BlackElo "2201"]
[Result "1-0"]
[Round "01"]
[TimeControl "180+2"]
[Date "2023.01.03"]
[WhiteClock "0:00:22"]
[BlackClock "0:00:03"]

1. e4 {[%clk 0:02:29]}  d5 {[%clk 0:02:59]} 2. exd5 {[%clk 0:02:29]}  Qxd5 {[%clk 0:02:59]} 3. Nc3 {[%clk 0:02:29]}  Qa5 {[%clk 0:02:59]} 4. d4 {[%clk 0:02:29]}  c6 {[%clk 0:02:59]} 5. Nf3 {[%clk 0:02:27]}  Nf6 {[%clk 0:03:00]} 6. Bc4 {[%clk 0:02:26]}  Bf5 {[%clk 0:02:58]} 7. Bd2 {[%clk 0:02:26]}  e6 {[%clk 0:02:58]} 8. Nd5 {[%clk 0:02:26]}  Qd8 {[%clk 0:02:58]} 9. Nxf6+ {[%clk 0:02:26]}  gxf6 {[%clk 0:02:59]} 10. Bb3 {[%clk 0:02:21]}  Nd7 {[%clk 0:02:58]} 11. Qe2 {[%clk 0:02:21]}  Qc7 {[%clk 0:02:58]} 12. Nh4 {[%clk 0:02:21]}  Bg6 {[%clk 0:02:58]} 13. O-O-O {[%clk 0:02:19]}  O-O-O {[%clk 0:02:58]} 14. g3 {[%clk 0:02:19]}  Bd6 {[%clk 0:02:48]} 15. Nxg6 {[%clk 0:02:17]}  hxg6 {[%clk 0:02:47]} 16. h4 {[%clk 0:02:17]}  f5 {[%clk 0:02:47]} 17. Bg5 {[%clk 0:02:13]}  Rde8 {[%clk 0:02:47]} 18. Kb1 {[%clk 0:02:12]}  c5 {[%clk 0:02:10]} 19. dxc5 {[%clk 0:02:08]}  Nxc5 {[%clk 0:02:09]} 20. Bf6 {[%clk 0:01:44]}  Rhg8 {[%clk 0:02:03]} 21. Bd4 {[%clk 0:01:44]}  Nxb3 {[%clk 0:02:02]} 22. cxb3 {[%clk 0:01:37]}  Kb8 {[%clk 0:02:01]} 23. Qe3 {[%clk 0:01:36]}  b6 {[%clk 0:01:48]} 24. Rc1 {[%clk 0:01:34]}  Qb7 {[%clk 0:01:44]} 25. Be5 {[%clk 0:01:32]}  Bxe5 {[%clk 0:01:34]} 26. Qxe5+ {[%clk 0:01:32]}  Ka8 {[%clk 0:01:35]} 27. Rhd1 {[%clk 0:01:28]}  Rc8 {[%clk 0:01:25]} 28. a3 {[%clk 0:01:28]}  a6 {[%clk 0:01:18]} 29. b4 {[%clk 0:01:28]}  Rxc1+ {[%clk 0:01:13]} 30. Rxc1 {[%clk 0:01:27]}  Rc8 {[%clk 0:01:12]} 31. Rxc8+ {[%clk 0:01:26]}  Qxc8 {[%clk 0:01:12]} 32. Qd6 {[%clk 0:01:26]}  Qb7 {[%clk 0:01:08]} 33. Ka2 {[%clk 0:01:23]}  Ka7 {[%clk 0:00:58]} 34. a4 {[%clk 0:01:22]}  Ka8 {[%clk 0:00:30]} 35. b3 {[%clk 0:01:19]}  Ka7 {[%clk 0:00:28]} 36. Ka3 {[%clk 0:01:19]}  Ka8 {[%clk 0:00:28]} 37. Qd4 {[%clk 0:01:18]}  Qc7 {[%clk 0:00:25]} 38. Kb2 {[%clk 0:01:14]}  Kb7 {[%clk 0:00:20]} 39. Qd3 {[%clk 0:01:13]}  Ka7 {[%clk 0:00:20]} 40. Qe3 {[%clk 0:01:11]}  Kb7 {[%clk 0:00:18]} 41. Qd4 {[%clk 0:01:09]}  Ka7 {[%clk 0:00:16]} 42. a5 {[%clk 0:00:56]}  Kb7 {[%clk 0:00:13]} 43. Qf6 {[%clk 0:00:53]}  Qd7 {[%clk 0:00:09]} 44. Ka3 {[%clk 0:00:50]}  bxa5 {[%clk 0:00:04]} 45. bxa5 {[%clk 0:00:50]}  Qd6+ {[%clk 0:00:04]} 46. b4 {[%clk 0:00:38]}  Qd3+ {[%clk 0:00:04]} 47. Kb2 {[%clk 0:00:35]}  Qd2+ {[%clk 0:00:04]} 48. Kb3 {[%clk 0:00:35]}  Qd3+ {[%clk 0:00:04]} 49. Qc3 {[%clk 0:00:35]}  Qd5+ {[%clk 0:00:03]} 50. Kb2 {[%clk 0:00:32]}  Qd1 {[%clk 0:00:03]} 51. Qe3 {[%clk 0:00:29]}  Qa4 {[%clk 0:00:02]} 52. Qd2 {[%clk 0:00:27]}  Qc6 {[%clk 0:00:01]} 53. Qd3 {[%clk 0:00:23]}  Qe4 {[%clk 0:00:01]} 54. Qxe4+ {[%clk 0:00:22]}  fxe4 {[%clk 0:00:02]} 55. g4 {[%clk 0:00:22]}  Kc6 {[%clk 0:00:03]} 56. h5 {[%clk 0:00:22]}  gxh5 {[%clk 0:00:03]} 57. gxh5 {[%clk 0:00:22]}  Kd6 {[%clk 0:00:03]} 58. h6 {[%clk 0:00:22]} 1-0


[Site "https://www.chess.com"]